bitfinex/quotes_ETHUSD_20251010
["timestamp","ask_amount","ask_price","bid_price","bid_amount"]
[1760101488044,0.01,4367.9,4367.1,4.77969632]
[1760101488340,3.467,4367.7,4367.4,4.77969632]
[1760101488524,3.467,4367.7,4367.5,0.4656]
[1760101488725,3.467,4367.7,4367.6,0.4656]
[1760101489744,3.467,4367.7,4367.2,1.0992]
[1760101489942,3.467,4367.7,4366.4,1.92]
[1760101489943,0.2403,4367.6,4366.6,4.77969632]
[1760101490145,1.92,4367.6,4366.6,4.77969632]
[1760101490307,5.373,4367.5,4367.3,4.77969632]
[1760101490510,3.466,4367.4,4367.3,5.24529632]
[1760101490709,3.466,4367.4,4367.3,4.77969632]
[1760101491230,3.466,4367.4,4367.3,8.16864055]
[1760101491432,3.466,4367.4,4367.3,5.87889632]
[1760101491648,3.416,4367.4,4367.3,5.87889632]
[1760101492511,3.416,4367.4,4367.3,0.6336]
[1760101493233,3.416,4367.4,4367.3,5.41329632]
[1760101493434,3.416,4367.4,4367.3,5.87889632]
[1760101494029,3.416,4367.4,4367.3,5.99329632]
[1760101495710,3.416,4367.4,4367.3,8.28304055]
[1760101495917,0.01,4367.9,4367.3,8.28304055]
[1760101496212,5.372,4367.8,4367.6,4.77969632]
[1760101496440,5.372,4367.8,4367.7,0.1144]
[1760101496825,0.01,4367.9,4367.7,0.58]
[1760101497032,5.372,4367.8,4367.7,0.58]
[1760101497835,0.01,4367.9,4367.8,2.28948211]
[1760101498012,5.381,4367.9,4367.8,1.50313302]
[1760101498619,5.381,4367.9,4367.8,0.4459]
[1760101499126,5.381,4367.9,4367.7,0.6336]
[1760101499338,5.381,4367.9,4367.7,1.0795]
[1760101500258,5.381,4367.9,4367.7,0.6336]
[1760101500423,5.381,4367.9,4367.8,0.4459]
[1760101500624,5.381,4367.9,4367.8,5.22559632]
[1760101502720,3.474,4367.9,4367.8,5.22559632]
[1760101502926,5.383,4367.9,4367.8,5.22559632]
[1760101504754,5.383,4367.9,4367.8,7.51507843]
[1760101504957,5.383,4367.9,4367.8,5.22559632]
[1760101505355,5.382,4367.9,4367.8,5.22559632]
[1760101506660,5.382,4367.9,4367.6,0.6336]
[1760101506865,5.382,4367.9,4367.7,4.77969632]
[1760101507470,5.382,4367.9,4366.7,0.4459]
[1760101507674,0.2441,4367.8,4366.7,4.77969632]
[1760101507854,2.28962915,4367.6,4366.7,4.77969632]
[1760101508159,3.465,4367.5,4367.1,0.1144]
[1760101510265,5.75463938,4367.5,4367.4,0.0712]
[1760101510834,7.91873938,4367.5,4367.4,0.0712]
[1760101511934,23.9150465,4367.5,4367.4,0.0712]
[1760101512443,17.0827315,4367.5,4367.4,0.0712]
[1760101512633,14.3516975,4367.5,4367.4,0.0712]
[1760101512830,12.5323395,4367.5,4367.4,0.0712]
[1760101513666,9.276028,4367.3,4365.7,0.1144]
[1760101513870,9.276028,4367.3,4365.1,0.01]
[1760101513871,2.29058986,4365.7,4365.2,0.1144]
[1760101514174,5.371,4365.6,4365.2,0.1144]
[1760101515335,5.371,4365.6,4365.2,1.13533154]
[1760101516045,5.371,4365.6,4365.2,0.68943154]
[1760101516254,5.371,4365.6,4365.2,0.1144]
[1760101516450,5.371,4365.6,4365.2,0.5603]
[1760101516645,5.371,4365.6,4365.2,0.1144]
[1760101517266,0.099,4365.5,4365.2,0.1144]
[1760101517474,3.465,4365.4,4365.2,0.1144]
[1760101519237,3.465,4365.4,4365.1,0.01]
[1760101519238,2.3897933,4365.3,4365.1,0.01]
[1760101519437,5.75584578,4365.2,4365.1,0.01]
[1760101519665,5.85484578,4365.2,4365.1,0.01]
[1760101522456,3.465,4365.2,4365.1,0.01]
[1760101522654,5.75584578,4365.2,4365.1,0.01]
[1760101522850,3.465,4365.2,4365.1,0.01]
[1760101523054,5.85484578,4365.2,4365.1,0.01]
[1760101524263,7.77484578,4365.2,4365.1,0.01]
[1760101524573,13.91609878,4365.2,4365.1,0.01]
[1760101524778,12.44443878,4365.2,4365.1,0.01]
[1760101524977,37.77484578,4365.2,4365.1,0.01]
[1760101525147,26.10283763,4364.9,4364.8,0.001]
[1760101525348,29.56783763,4364.9,4364.8,0.001]
[1760101525549,24.04092223,4364.9,4364.8,0.001]
[1760101525745,26.59452223,4364.9,4364.8,0.001]
[1760101525991,8.40860323,4364.9,4364.8,0.001]
[1760101526143,8.40860323,4364.9,4362.1,0.01]
[1760101526144,2.29137069,4364.2,4364.1,1e-08]
[1760101526348,24.57011069,4364.2,4364.1,1e-08]
[1760101526577,22.92986869,4364.2,4364.1,1e-08]
[1760101526780,23.56346869,4364.2,4364.1,1e-08]
[1760101527186,46.7705932,4364.2,4364.1,1e-08]
[1760101527372,0.6336,4363.7,4363.1,1e-08]
[1760101527587,10.331752,4363.2,4363.1,1e-08]
[1760101527765,17.99864785,4363.2,4363.1,1e-08]
[1760101527953,18.73434785,4363.2,4363.1,1e-08]
[1760101528702,20.65434785,4363.2,4363.1,1e-08]
[1760101530870,4.51639585,4363.2,4363.1,1e-08]
[1760101531096,16.49199585,4363.2,4363.1,1e-08]
[1760101531298,10.46939585,4363.2,4363.1,1e-08]
[1760101531486,13.93839585,4363.2,4363.1,1e-08]
[1760101531689,15.85839585,4363.2,4363.1,1e-08]
[1760101532379,4.51639585,4363.2,4363.1,1e-08]
[1760101532606,15.85939585,4363.2,4363.1,1e-08]
[1760101533704,15.85939585,4363.2,4363.1,0.00100001]
[1760101534421,15.85859585,4363.2,4363.1,0.00100001]
[1760101534807,21.76797285,4363.2,4363.1,0.00100001]
[1760101535123,16.49219585,4363.2,4363.1,0.00100001]
[1760101535927,15.85859585,4363.2,4363.1,0.00100001]
[1760101536218,16.92660385,4363.2,4363.1,0.00100001]
[1760101536517,19.46920385,4363.2,4363.1,0.00100001]
[1760101536719,46.17364985,4363.2,4363.1,0.00100001]
[1760101537120,45.10855885,4363.2,4363.1,0.00100001]
[1760101537717,46.49419585,4363.2,4363.1,0.00100001]
[1760101538701,16.49419585,4363.2,4363.1,0.00100001]
[1760101538904,46.49419585,4363.2,4363.1,0.00100001]
[1760101539104,46.98333327,4363.2,4363.1,0.00100001]
[1760101541718,16.98333327,4363.2,4363.1,0.00100001]
[1760101541931,46.98333327,4363.2,4363.1,0.00100001]
[1760101542914,19.67493627,4363.2,4363.1,0.00100001]
[1760101544029,19.55205327,4363.2,4363.1,0.00100001]
[1760101544626,18.91845327,4363.2,4363.1,0.00100001]
[1760101544843,16.35173327,4363.2,4363.1,0.00100001]
[1760101549321,16.96730806,4363.2,4363.1,0.00100001]
[1760101549827,16.35173327,4363.2,4363.1,0.00100001]
[1760101550330,16.96732377,4363.2,4363.1,0.00100001]
[1760101551247,16.35173327,4363.2,4363.1,0.00100001]
[1760101551837,10.58883742,4363.2,4363.1,0.00100001]
[1760101552127,16.35173327,4363.2,4363.1,0.00100001]
[1760101552328,16.24963327,4363.2,4363.1,0.00100001]
[1760101552628,14.74450987,4363.2,4363.1,0.00100001]
[1760101552827,14.12803327,4363.2,4363.1,0.00100001]
[1760101553133,14.74450987,4363.2,4363.1,0.00100001]
[1760101553328,14.74650987,4363.2,4363.1,0.00100001]
[1760101553735,14.84950987,4363.2,4363.1,0.00100001]
[1760101554302,14.23303327,4363.2,4363.1,0.00100001]
[1760101555219,15.05898385,4363.2,4363.1,0.00100001]
[1760101557203,14.23303327,4363.2,4363.1,0.00100001]
[1760101558367,11.83813742,4363.2,4363.1,0.00100001]
[1760101558844,14.12923327,4363.2,4363.1,0.00100001]
[1760101559041,14.74743798,4363.2,4363.1,0.00100001]
[1760101559647,14.12923327,4363.2,4363.1,0.00100001]
[1760101560508,14.85123798,4363.2,4363.1,0.00100001]
[1760101561144,14.74743798,4363.2,4363.1,0.00100001]
[1760101561514,14.12923327,4363.2,4363.1,0.00100001]
[1760101562016,11.83733742,4363.2,4363.1,0.00100001]
[1760101562448,11.83733742,4363.2,4363.1,0.45890001]
[1760101562819,11.349,4363.2,4363.1,0.45890001]
[1760101563014,11.349,4363.2,4363.1,0.00100001]
[1760101563217,13.74469585,4363.2,4363.1,0.00100001]
[1760101563527,13.85909585,4363.2,4363.1,0.00100001]
[1760101564862,11.4634,4363.2,4363.1,0.00100001]
[1760101565228,13.75529585,4363.2,4363.1,0.00100001]
[1760101566166,2.40829585,4363.2,4363.1,0.00100001]
[1760101566463,13.85609585,4363.2,4363.1,0.00100001]
[1760101568573,11.4604,4363.2,4363.1,0.00100001]
[1760101568754,13.75229585,4363.2,4363.1,0.00100001]
[1760101570694,11.4604,4363.2,4363.1,0.00100001]
[1760101571109,11.346,4363.2,4363.1,0.45890001]
[1760101571806,11.346,4363.2,4363.1,0.74543787]
[1760101572485,11.346,4363.2,4363.1,0.45890001]
[1760101572680,11.346,4363.2,4363.1,0.57330001]
[1760101572980,11.346,4363.2,4363.1,2.86524839]
[1760101573361,0.002,4363.2,4363.1,2.86524839]
[1760101573565,5.379,4363.2,4363.1,0.57330001]
[1760101573892,5.379,4363.2,4363.1,2.86524839]
[1760101574066,5.379,4363.2,4363.1,3.38326849]
[1760101574667,0.002,4363.2,4363.1,3.38326849]
[1760101574992,3.462,4363.2,4363.1,3.38326849]
[1760101575198,3.462,4363.2,4363.1,3.26886849]
[1760101575370,3.462,4363.2,4363.1,3.38326849]
[1760101575570,3.462,4363.2,4363.1,8.19002465]
[1760101575894,3.462,4363.2,4363.1,8.19710517]
[1760101578407,3.4612,4363.2,4363.1,8.19710517]
[1760101579228,3.4612,4363.2,4363.1,10.11710517]
[1760101582832,0.0012,4363.2,4363.1,10.11710517]
[1760101583005,5.3752,4363.2,4363.1,10.11710517]
[1760101585247,0.0012,4363.2,4363.1,10.11710517]
[1760101585436,3.4662,4363.2,4363.1,10.11710517]
[1760101590368,1.909,4363.5,4363.4,2.2917908]
[1760101590568,1.909,4363.5,4363.4,10.68062102]
[1760101590569,5.374,4363.5,4363.4,10.68062102]
[1760101590749,5.374,4363.5,4363.4,11.12170312]
[1760101590955,5.374,4363.5,4363.4,11.23610312]
[1760101597105,0.002,4363.7,4363.6,2.29168576]
[1760101597271,0.03,4363.7,4363.6,2.31460261]
[1760101597587,0.03,4363.7,4363.6,4.13367318]
[1760101598189,0.03,4363.7,4363.6,4.11075633]
[1760101600357,0.03,4363.7,4363.6,6.03075633]
[1760101600560,0.0292,4363.7,4363.6,6.03075633]
[1760101602495,0.0292,4363.7,4363.6,10.81459301]
[1760101603406,0.0292,4363.7,4363.6,15.8582351]
[1760101603563,0.0292,4363.7,4363.6,15.59842969]
[1760101604783,4.7922,4364.0,4363.9,2.29152822]
[1760101604987,4.7922,4364.0,4363.9,16.12667245]
[1760101605190,4.7922,4364.0,4363.9,16.56775717]
[1760101605799,4.7922,4364.0,4363.9,11.78392049]
[1760101607618,4.7922,4364.0,4363.9,16.56775717]
[1760101607808,4.7922,4364.0,4363.9,11.78392049]
[1760101608914,4.7942,4364.0,4363.9,11.78392049]
[1760101609240,3.462,4364.4,4364.0,1.92]
[1760101609389,1.908,4364.9,4364.8,2.29105571]
[1760101609588,5.37,4364.9,4364.8,9.56280294]
[1760101609788,5.37,4364.9,4364.8,9.53989239]
[1760101609984,5.37,4364.9,4364.8,7.24883668]
[1760101610238,5.372,4364.9,4364.8,7.24883668]
[1760101610986,5.372,4364.9,4364.8,2.0344]
[1760101611185,5.372,4364.9,4364.8,2.465]
[1760101611613,5.372,4364.9,4364.8,9.53989239]
[1760101615224,5.372,4364.9,4364.8,0.1144]
[1760101617563,7.66300323,4364.9,4364.8,0.1144]
[1760101617856,5.372,4364.9,4364.8,0.1144]
[1760101620658,0.002,4364.9,4364.8,0.1144]
[1760101620867,5.371,4364.9,4364.8,0.5877]
[1760101621166,5.371,4364.9,4364.8,2.87875571]
[1760101621674,5.371,4364.9,4364.8,0.5877]
[1760101621828,5.371,4364.9,4364.8,2.87875571]
[1760101622159,5.371,4364.9,4364.8,0.61061055]
[1760101622323,5.371,4364.9,4364.8,2.90166626]
[1760101622528,5.3702,4364.9,4364.8,2.90166626]
[1760101623345,5.3702,4364.9,4364.8,3.89933146]
[1760101623546,5.3702,4364.9,4364.8,8.68316814]
[1760101623738,5.3702,4364.9,4364.8,8.66025759]
[1760101624230,5.3702,4364.9,4364.8,6.36920188]
[1760101624547,5.3702,4364.9,4364.8,7.66259239]
[1760101624749,5.3702,4364.9,4364.8,2.87875571]
[1760101624929,5.3702,4364.9,4364.8,7.66259239]
[1760101625548,5.3702,4364.9,4364.8,9.58259239]
[1760101626229,1.9092,4364.9,4364.8,9.58259239]
[1760101626532,5.3702,4364.9,4364.8,10.76996604]
[1760101627964,0.0012,4364.9,4364.8,10.76996604]
[1760101628169,3.4612,4364.9,4364.8,10.76996604]
[1760101629165,3.4612,4364.9,4364.8,11.23342753]
[1760101632661,3.4612,4364.9,4364.8,11.9219581]
[1760101634566,3.4612,4364.9,4364.8,11.23342753]
[1760101637044,3.4612,4364.9,4364.8,3.69507365]
[1760101637380,3.4612,4364.9,4364.8,2.5077]
[1760101637558,3.4612,4364.9,4364.8,4.79875571]
[1760101637860,3.4612,4364.9,4364.8,0.1144]
[1760101640081,3.4612,4364.9,4364.1,0.001]
[1760101640265,3.4612,4364.9,4364.6,0.1144]
[1760101641138,5.75221926,4364.9,4364.6,0.1144]
[1760101641468,3.4612,4364.9,4364.6,0.1144]
[1760101641776,0.2134,4364.8,4364.1,0.1154]
[1760101641942,2.29134246,4364.3,4364.1,0.1154]
[1760101642141,7.65837069,4364.2,4364.1,0.1154]
[1760101642660,7.75737069,4364.2,4364.1,0.001]
[1760101643160,10.59248942,4364.2,4364.1,0.001]
[1760101643359,10.31097069,4364.2,4364.1,0.001]
[1760101644776,4.94397069,4364.2,4364.1,0.001]
[1760101644966,7.871,4364.2,4364.1,0.001]
[1760101645343,11.331,4364.2,4364.1,0.001]
[1760101647672,11.331,4364.2,4364.1,0.4755]
[1760101648246,11.331,4364.2,4364.1,0.001]
[1760101651384,13.72137069,4364.2,4364.1,0.001]
[1760101654289,11.331,4364.2,4364.1,0.001]
[1760101654877,11.43,4364.2,4364.1,0.001]
[1760101655387,11.331,4364.2,4364.1,0.001]
[1760101658610,0.2134,4364.6,4364.1,0.001]
[1760101658611,0.1144,4364.6,4364.1,0.001]
[1760101658774,1.908,4364.2,4364.1,0.001]
[1760101658980,5.367,4364.2,4364.1,0.4755]
[1760101659507,3.459,4364.2,4364.1,8.90216059]
[1760101660177,3.459,4364.2,4364.1,10.82216059]
[1760101660809,3.459,4364.2,4364.1,11.27492824]
[1760101661167,0.01,4365.9,4364.8,2.29105571]
[1760101661465,3.4622,4364.9,4364.8,4.88418461]
[1760101661701,3.4622,4364.9,4364.8,5.33577406]
[1760101663473,3.4622,4364.9,4364.8,6.02433149]
[1760101666025,1.908,4365.4,4364.8,6.02433149]
[1760101666026,1.908,4365.4,4364.9,1.92]
[1760101666171,1.908,4365.4,4365.3,2.2907933]
[1760101666370,4.766,4365.4,4365.3,4.93728056]
[1760101666569,4.766,4365.4,4365.3,4.91437263]
[1760101666893,4.7652,4365.4,4365.3,4.91437263]
[1760101667799,2.858,4365.4,4365.3,4.91437263]
[1760101667970,2.86,4365.4,4365.3,4.91437263]
[1760101669527,2.86,4365.4,4365.3,5.02877263]
[1760101670521,2.86,4365.4,4365.3,5.71729214]
[1760101670803,2.86,4365.4,4365.3,3.42649884]
[1760101671006,2.86,4365.4,4365.3,1.92]
[1760101671301,2.86,4365.4,4365.3,4.6788933]
[1760101672388,2.86,4365.4,4365.3,2.3881]
[1760101672589,2.86,4365.4,4365.3,1.92]
[1760101672990,2.86,4365.4,4364.3,0.4681]
[1760101673190,1.908,4365.3,4364.4,0.14307145]
[1760101673403,1.908,4365.3,4364.9,2.29099377]
[1760101673691,1.908,4365.3,4364.3,0.4681]
[1760101673894,4.19881272,4365.3,4364.5,2.291191]
[1760101674099,1.908,4365.3,4364.6,0.4910116]
[1760101674706,1.908,4365.3,4364.6,2.75921051]
[1760101674877,1.908,4365.3,4364.6,2.75925207]
[1760101675208,1.908,4365.3,4364.6,0.4681]
[1760101675399,1.908,4365.3,4364.8,2.29101167]
[1760101675709,1.908,4365.3,4364.6,0.4910116]
[1760101675710,1.908,4365.3,4364.6,4.21114741]
[1760101676310,1.908,4365.3,4364.7,0.4681]
[1760101676505,1.908,4365.3,4364.9,2.29096487]
[1760101676677,1.908,4365.3,4365.0,2.29094154]
[1760101676881,1.908,4365.3,4365.0,0.4681]
[1760101677929,1.908,4365.3,4364.6,1.92]
[1760101678074,1.908,4365.3,4364.7,0.47701108]
[1760101678424,1.908,4365.3,4365.0,2.29089888]
[1760101678583,1.908,4365.3,4365.1,0.4541]
[1760101679207,1.908,4365.3,4364.7,2.76811755]
[1760101679391,1.908,4365.3,4364.4,0.4541]
[1760101679714,1.908,4365.3,4364.6,2.2911373]
[1760101680014,1.908,4365.3,4364.4,0.4541]
[1760101680218,1.908,4365.3,4364.1,0.91040602]
[1760101680219,2.29095225,4365.0,4364.2,4.21132782]
[1760101680414,3.461,4364.9,4364.3,1.92]
[1760101680618,3.56,4364.9,4364.1,0.001]
[1760101680823,0.6336,4364.5,4364.1,0.001]
[1760101680983,2.29137069,4364.2,4364.1,0.001]
[1760101681684,7.66137069,4364.2,4364.1,0.001]
[1760101681904,0.1144,4364.5,4364.1,0.001]
[1760101682121,7.66137069,4364.2,4364.1,0.001]
[1760101682287,5.37,4364.2,4364.1,0.001]
[1760101682593,7.66137069,4364.2,4364.1,0.001]
[1760101683584,5.37,4364.2,4364.1,0.001]
[1760101683929,1.908,4364.2,4364.1,0.6705]
[1760101684096,5.37,4364.2,4364.1,1.66928279]
[1760101684295,5.37,4364.2,4364.1,3.96070599]
[1760101684882,5.37,4364.2,4364.1,3.93779176]
[1760101685493,2.29085254,4365.2,4364.4,2.29124816]
[1760101685722,5.371,4365.1,4364.6,2.29114644]
[1760101685891,5.371,4365.1,4364.8,0.1144]
[1760101686090,5.371,4365.1,4364.9,0.4541]
[1760101686286,0.002,4365.4,4364.9,0.4541]
[1760101686492,4.01,4365.3,4365.1,0.1144]
[1760101686920,4.01,4365.3,4365.2,0.4541]
[1760101688820,4.0092,4365.3,4365.1,0.13730898]
[1760101689021,2.29104825,4364.9,4364.8,0.1144]
[1760101689319,5.76300323,4364.9,4364.8,0.1144]
[1760101689501,3.472,4364.9,4364.4,0.5685]
[1760101689698,2.29119156,4364.6,4364.4,0.1144]
[1760101689901,5.38,4364.5,4364.4,0.1144]
[1760101693956,5.38,4364.5,4364.4,0.5685]
[1760101695025,5.38,4364.5,4364.4,2.85976569]
[1760101695826,5.38,4364.5,4364.4,0.5685]
[1760101696053,5.38,4364.5,4364.4,2.85976569]
[1760101696354,5.378,4364.5,4364.4,2.85976569]
[1760101697354,3.47,4364.5,4364.4,2.85976569]
[1760101697531,3.47,4364.5,4364.4,5.31651591]
[1760101698660,3.47,4364.5,4364.4,3.02525022]
[1760101698961,3.47,4364.5,4364.4,5.31651591]
[1760101699865,3.47,4364.5,4364.4,3.02525022]
[1760101700162,3.47,4364.5,4364.4,5.31651591]
[1760101701052,3.47,4364.5,4364.4,2.3741]
[1760101701263,3.47,4364.5,4364.4,1.92]
[1760101701429,3.47,4364.5,4364.1,0.001]
[1760101701763,3.47,4364.5,4364.1,0.4551]
[1760101702270,3.47,4364.5,4364.2,0.4541]
[1760101702433,3.47,4364.5,4364.2,2.52967331]
[1760101702632,3.47,4364.5,4364.3,2.74540949]
[1760101702867,3.47,4364.5,4364.4,0.4541]
[1760101703363,3.469,4364.5,4364.4,0.4541]
[1760101703565,5.377,4364.5,4364.4,0.47701265]
[1760101703770,5.377,4364.5,4364.4,3.27298033]
[1760101703938,5.377,4364.5,4364.4,0.98171464]
[1760101704137,5.377,4364.5,4364.4,0.4541]
[1760101704950,5.377,4364.5,4364.3,0.001]
[1760101705574,2.29126569,4364.4,4364.3,0.001]
[1760101707889,1.908,4364.5,4364.3,0.001]
[1760101708087,3.469,4364.4,4364.3,0.4713]
[1760101708248,3.469,4364.4,4364.3,0.001]
[1760101709479,3.469,4364.4,4364.3,0.4713]
[1760101710982,3.4682,4364.4,4364.3,0.4713]
[1760101713247,5.376,4364.4,4364.3,0.8972104]
[1760101714163,5.376,4364.4,4364.3,3.18852859]
[1760101714668,5.376,4364.4,4364.3,0.8972104]
[1760101714873,5.376,4364.4,4364.3,0.1154]
[1760101715486,5.376,4364.4,4364.3,0.5857]
[1760101717490,5.376,4364.4,4364.3,0.1154]
[1760101718395,7.66726569,4364.4,4364.3,0.1154]
[1760101718562,7.66726569,4364.4,4364.3,0.001]
[1760101724707,7.76626569,4364.4,4364.3,0.001]
[1760101724878,7.88066569,4364.4,4364.3,0.001]
[1760101726973,8.51426569,4364.4,4364.3,0.001]
[1760101727190,13.29669715,4364.4,4364.3,0.001]
[1760101729345,8.51426569,4364.4,4364.3,0.001]
[1760101729941,13.29669715,4364.4,4364.3,0.001]
[1760101733043,13.29589715,4364.4,4364.3,0.001]
[1760101734546,7.92069715,4364.4,4364.3,0.001]
[1760101734742,19.25769715,4364.4,4364.3,0.001]
[1760101738462,3.03926569,4364.4,4364.3,0.001]
[1760101738664,19.15869715,4364.4,4364.3,0.001]
[1760101738973,19.25769715,4364.4,4364.3,0.001]
[1760101739830,19.25669715,4364.4,4364.3,0.001]
[1760101741983,7.92069715,4364.4,4364.3,0.001]
[1760101742183,19.25669715,4364.4,4364.3,0.001]
[1760101742777,13.84066569,4364.4,4364.3,0.001]
[1760101742982,13.74166569,4364.4,4364.3,0.001]
[1760101743344,13.84066569,4364.4,4364.3,0.001]
[1760101743895,13.74366569,4364.4,4364.3,0.001]
[1760101744244,13.84266569,4364.4,4364.3,0.001]
[1760101745682,14.47626569,4364.4,4364.3,0.001]
[1760101746348,16.39626569,4364.4,4364.3,0.001]
[1760101748587,26.41478863,4364.4,4364.3,0.001]
[1760101750077,16.89066544,4364.4,4364.3,0.001]
[1760101750307,18.89866744,4364.4,4364.3,0.001]
[1760101750666,23.6810989,4364.4,4364.3,0.001]
[1760101752516,21.6730969,4364.4,4364.3,0.001]
[1760101752805,21.6730969,4364.4,4364.1,0.001]
[1760101752806,2.29210598,4362.8,4362.3,0.001]
[1760101753006,12.44553744,4362.8,4362.3,0.001]
[1760101753209,14.46563744,4362.8,4362.3,0.001]
[1760101753581,15.19113347,4362.8,4362.3,0.001]
[1760101754110,10.40870201,4362.8,4362.3,0.001]
[1760101754313,15.19113347,4362.8,4362.3,0.001]
[1760101754519,9.18653347,4362.8,4362.3,0.001]
[1760101754683,15.74110201,4362.8,4362.3,0.001]
[1760101755077,15.74030201,4362.8,4362.3,0.001]
[1760101755672,4.40330201,4362.8,4362.3,0.001]
[1760101755909,15.74030201,4362.8,4362.3,0.001]
[1760101756410,4.40330201,4362.8,4362.3,0.001]
[1760101756708,15.74030201,4362.8,4362.3,0.001]
[1760101757477,2.29210598,4362.8,4362.3,0.001]
[1760101757695,7.66310598,4362.8,4362.3,0.001]
[1760101758299,5.371,4362.8,4362.3,0.001]
[1760101758494,7.66310598,4362.8,4362.3,0.001]
[1760101759932,7.76420598,4362.8,4362.3,0.001]
[1760101760906,7.85610243,4362.8,4362.3,0.001]
[1760101761108,8.48970243,4362.8,4362.3,0.001]
[1760101761715,10.40970243,4362.8,4362.3,0.001]
[1760101763244,17.23988643,4362.8,4362.3,0.001]
[1760101763607,15.97054743,4362.8,4362.3,0.001]
[1760101763929,15.65454743,4362.8,4362.3,0.001]
[1760101764522,12.74740343,4362.8,4362.3,0.001]
[1760101765423,13.50636543,4362.8,4362.3,0.001]
[1760101766449,19.13050143,4362.8,4362.3,0.001]
[1760101766651,10.40970243,4362.8,4362.3,0.001]
[1760101767341,0.6336,4362.2,4362.1,1e-08]
[1760101767545,24.65716135,4362.2,4362.1,1e-08]
[1760101767733,24.75826135,4362.2,4362.1,1e-08]
[1760101768052,44.63015639,4362.2,4362.1,1e-08]
[1760101768850,44.63015639,4362.2,4360.7,0.001]
[1760101768851,2.92675721,4360.8,4360.7,0.001]
[1760101769028,16.18775721,4360.8,4360.7,0.001]
[1760101769224,16.28985721,4360.8,4360.7,0.001]
[1760101769754,16.38181112,4360.8,4360.7,0.001]
[1760101770049,5.04081112,4360.8,4360.7,0.001]
[1760101770256,23.54581112,4360.8,4360.7,0.001]
[1760101770425,5.04081112,4360.8,4360.7,0.001]
[1760101770852,16.38481112,4360.8,4360.7,0.001]
[1760101773763,19.54947312,4360.8,4360.7,0.001]
[1760101773974,18.58870112,4360.8,4360.7,0.001]
[1760101774266,2.29405064,4359.2,4358.0,2.29462932]
[1760101774432,5.382,4359.1,4358.1,0.81402595]
[1760101774633,5.382,4359.1,4358.0,0.4583]
[1760101774634,11.6804,4359.0,4358.0,0.4583]
[1760101774836,5.384,4358.9,4358.1,2.29457791]
[1760101775352,5.384,4358.9,4358.0,0.4583]
[1760101775536,7.67816418,4358.9,4357.9,2.29468205]
[1760101775736,5.384,4358.9,4357.9,2.29468205]
[1760101776165,5.384,4358.9,4357.8,2.13056004]
[1760101776166,5.384,4358.9,4358.0,2.75291765]
[1760101776368,5.384,4358.9,4358.0,1.51016122]
[1760101776535,5.384,4358.9,4358.0,0.4583]
[1760101776869,7.67820081,4358.9,4358.0,0.4583]
[1760101777168,7.67740081,4358.9,4358.0,2.75292521]
[1760101777333,0.1144,4358.7,4358.0,0.5727]
[1760101777531,3.477,4358.6,4358.0,0.5727]
[1760101777765,3.477,4358.6,4358.1,0.30779702]
[1760101777975,3.477,4358.6,4358.2,0.4583]
[1760101778466,3.477,4358.6,4358.5,2.29436732]
[1760101778673,3.477,4358.6,4358.5,2.75266732]
[1760101778856,3.477,4358.6,4358.5,0.4583]
[1760101779059,3.477,4358.6,4358.5,2.75266732]
[1760101779261,1.92,4360.3,4358.5,0.96301855]
[1760101779472,0.1144,4359.0,4358.6,2.7526133]
[1760101779775,0.1144,4359.0,4358.8,2.29420941]
[1760101779975,5.386,4358.9,4358.7,2.29426202]
[1760101780482,5.386,4358.9,4358.5,2.7990847]
[1760101780681,5.386,4358.9,4358.1,0.53009702]
[1760101780903,0.1144,4358.8,4358.1,0.64449702]
[1760101781099,0.1144,4358.8,4358.1,2.96200361]
[1760101781253,0.1144,4358.8,4358.4,2.29441595]
[1760101782280,0.1144,4358.8,4358.1,0.64449702]
[1760101782472,2.29386984,4359.5,4358.1,0.64449702]
[1760101782473,1.92,4359.7,4358.4,5.6350701]
[1760101782670,5.97,4358.9,4358.6,2.29429497]
[1760101782890,5.386,4358.8,4358.4,0.4583]
[1760101783355,5.386,4358.8,4358.3,0.1144]
[1760101783882,5.386,4358.8,4358.2,0.62805671]
[1760101784189,5.5004,4358.8,4358.1,0.42219702]
[1760101784354,5.5004,4358.8,4358.1,2.71676912]
[1760101784555,5.5004,4358.8,4358.1,0.42219702]
[1760101784756,5.5004,4358.8,4358.1,0.1144]
[1760101784951,0.1144,4358.8,4358.1,0.1144]
[1760101785291,0.1144,4360.0,4358.7,0.3367]
[1760101785465,2.577,4359.8,4359.4,2.29389365]
[1760101785667,2.577,4359.8,4359.4,0.4583]
[1760101785875,2.577,4359.8,4359.4,2.75217457]
[1760101786077,2.577,4359.8,4359.6,2.29378842]
[1760101786402,0.1144,4360.0,4359.7,0.4583]
[1760101786705,5.388,4359.8,4359.7,2.2937358]
[1760101787407,5.388,4359.8,4358.1,0.68957115]
[1760101787561,5.4883,4359.8,4359.0,2.29409563]
[1760101787759,7.78198876,4359.8,4358.8,0.4329]
[1760101787964,7.78198876,4359.8,4359.1,2.29404222]
[1760101787965,5.388,4359.8,4359.1,2.29404222]
[1760101788187,5.388,4359.8,4359.3,2.29393316]
[1760101788402,5.388,4359.8,4359.4,0.4329]
[1760101788606,5.388,4359.8,4359.4,2.72675181]
[1760101789407,5.388,4359.8,4359.4,2.29385181]
[1760101789589,5.388,4359.8,4359.3,2.29392625]
[1760101789909,5.388,4359.8,4359.4,0.4329]
[1760101790107,2.29354148,4360.1,4359.4,0.4329]